bitfinex-derivatives/quotes_SOLF0:USTF0_20250221
["timestamp","ask_amount","ask_price","bid_price","bid_amount"]
[1740134301469,0.03523229,179.77,179.75,5.5617]
[1740134301659,5.5602,179.81,179.74,0.039472]
[1740134301963,193.0,179.85,179.74,0.039472]
[1740134302169,31.9107844,179.88,179.72,1.688]
[1740134302665,5.5602,179.81,179.72,1.688]
[1740134302868,0.03797906,179.82,179.78,0.04191416]
[1740134303067,24.0107844,179.88,179.78,0.04191416]
[1740134303265,5.5603,179.81,179.78,0.04191416]
[1740134303666,5.59631338,179.82,179.78,0.04191416]
[1740134304066,0.03641338,179.82,179.78,0.04191416]
[1740134305264,5.59651338,179.82,179.78,0.04191416]
[1740134305864,0.03641338,179.82,179.78,0.04191416]
[1740134306069,5.5608,179.79,179.78,0.04191416]
[1740134308266,5.5605,179.8,179.78,0.04191416]
[1740134308467,0.03641338,179.82,179.78,0.04191416]
[1740134309267,5.5607,179.8,179.78,0.04191416]
[1740134309563,0.03641338,179.82,179.78,0.04191416]
[1740134310069,5.5606,179.8,179.78,0.04191416]
[1740134311972,5.5602,179.81,179.78,0.04191416]
[1740134312375,0.03641338,179.82,179.78,0.04191416]
[1740134312569,0.03641338,179.82,179.78,24.05269856]
[1740134312770,7.86,179.89,179.78,24.05269856]
[1740134312969,5.5586,179.86,179.82,5.5597]
[1740134313370,11.2734,179.91,179.78,24.0107844]
[1740134313763,11.2734,179.91,179.83,5.5593]
[1740134314068,11.2734,179.91,179.83,0.03722207]
[1740134314475,35.2841844,179.91,179.83,0.03722207]
[1740134314874,5.5589,179.86,179.83,0.03722207]
[1740134315269,35.2841844,179.91,179.83,0.03722207]
[1740134315574,0.93046199,179.9,179.83,0.03722207]
[1740134316175,5.5592,179.84,179.83,0.03722207]
[1740134318775,7.82,179.89,179.83,0.03722207]
[1740134319172,5.5589,179.85,179.83,0.03722207]
[1740134319371,7.82,179.89,179.83,0.03722207]
[1740134319772,5.5591,179.85,179.83,0.03722207]
[1740134321772,7.82,179.9,179.83,0.03722207]
[1740134322676,27.4241844,179.91,179.83,0.03722207]
[1740134323275,5.5592,179.84,179.83,0.03722207]
[1740134323673,0.57265443,179.98,179.83,0.03722207]
[1740134323872,0.57265443,179.98,179.82,24.0107844]
[1740134324073,0.93006452,179.97,179.88,0.04191431]
[1740134324269,5.5573,179.91,179.88,0.04191431]
[1740134325177,0.57265443,179.98,179.88,0.04191431]
[1740134325379,5.557,179.92,179.88,0.04191431]
[1740134325578,0.57265443,179.98,179.88,0.04191431]
[1740134325969,24.0107844,179.97,179.88,0.04191431]
[1740134326476,5.5572,179.91,179.88,0.04191431]
[1740134328785,5.5574,179.9,179.88,0.04191431]
[1740134330182,5.5577,179.89,179.88,0.04191431]
[1740134330377,24.0107844,179.97,179.88,0.04191431]
[1740134330979,5.5576,179.9,179.88,0.04191431]
[1740134331180,24.0107844,179.97,179.88,0.04191431]
[1740134331585,5.5577,179.89,179.88,63.22290551]
[1740134331786,24.0107844,179.97,179.88,63.22290551]
[1740134331987,5.5576,179.9,179.88,63.22290551]
[1740134332287,24.0107844,179.97,179.88,63.22290551]
[1740134332486,7.8,179.96,179.88,63.22290551]
[1740134332985,24.0107844,179.97,179.88,63.22290551]
[1740134333183,0.57265443,179.98,179.88,63.22290551]
[1740134333486,5.5564,179.94,179.88,63.22290551]
[1740134333685,0.57265443,179.98,179.88,63.22290551]
[1740134334077,5.5574,179.9,179.88,63.22290551]
[1740134334387,24.0107844,179.97,179.88,63.22290551]
[1740134334581,5.5576,179.9,179.88,63.22290551]
[1740134334780,24.0107844,179.97,179.88,63.22290551]
[1740134335475,24.0107844,179.97,179.92,7.46737002]
[1740134335980,24.0107844,179.97,179.93,0.03598781]
[1740134337590,5.5561,179.94,179.93,0.03598781]
[1740134337887,5.5561,179.94,179.93,8.781e-05]
[1740134339791,79.5907844,179.94,179.89,51.16707457]
[1740134339986,24.0107844,179.91,179.89,28.11517457]
[1740134340191,31.7707844,179.91,179.88,90.32416811]
[1740134340394,5.5577,179.89,179.88,90.32416811]
[1740134340882,5.59743342,179.9,179.88,90.32416811]
[1740134341083,0.04003342,179.9,179.88,90.32416811]
[1740134341490,5.5577,179.89,179.88,90.32416811]
[1740134341686,24.0107844,179.89,179.87,0.03880456]
[1740134342091,5.558,179.88,179.87,0.03880456]
[1740134342488,0.04003342,179.9,179.87,0.03880456]
[1740134343188,5.558,179.88,179.87,0.03880456]
[1740134343791,5.5579,179.89,179.87,0.03880456]
[1740134344090,0.04003342,179.9,179.87,0.03880456]
[1740134344287,5.558,179.88,179.87,0.03880456]
[1740134345792,5.5579,179.89,179.87,0.03880456]
[1740134346394,0.04003342,179.9,179.87,0.03880456]
[1740134346599,5.558,179.88,179.87,0.03880456]
[1740134346900,24.0107844,179.89,179.78,37.14068754]
[1740134347199,5.5593,179.84,179.78,37.14068754]
[1740134347698,5.5593,179.84,179.78,42.70158754]
[1740134347894,5.5604,179.81,179.78,37.14068754]
[1740134348193,0.03754801,179.83,179.79,0.03876211]
[1740134348492,5.56,179.82,179.79,0.03876211]
[1740134348994,0.03754801,179.83,179.79,0.03876211]
[1740134349197,0.03754801,179.83,179.8,5.5605]
[1740134349392,0.03754801,179.83,179.79,0.03876211]
[1740134351390,0.03754801,179.83,179.79,5.59946211]
[1740134351589,0.03754801,179.83,179.79,0.03876211]
[1740134352098,0.03754801,179.83,179.79,5.59946211]
[1740134352301,0.03754801,179.83,179.79,0.03876211]
[1740134352602,5.59724801,179.83,179.79,0.03876211]
[1740134353299,0.03754801,179.83,179.79,0.03876211]
[1740134353994,5.5604,179.81,179.79,0.03876211]
[1740134354200,15.0383356,179.81,179.79,0.03876211]
[1740134354499,5.5605,179.8,179.79,0.03876211]
[1740134355801,5.562,179.75,179.65,229.09429338]
[1740134355998,15.0383356,179.76,179.68,1.8034]
[1740134356201,15.0383356,179.73,179.68,1.8034]
[1740134356697,15.0383356,179.73,179.68,7.3675]
[1740134356996,0.0374343,179.72,179.69,0.03636142]
[1740134358105,0.0374343,179.72,179.7,5.5635]
[1740134358502,0.0374343,179.72,179.69,0.03636142]
[1740134359604,0.0374343,179.72,179.69,5.60016142]
[1740134360306,0.0374343,179.72,179.7,5.5635]
[1740134360708,0.0374343,179.72,179.69,0.03636142]
[1740134361605,5.5635,179.71,179.69,0.03636142]
[1740134361805,0.0374343,179.72,179.69,0.03636142]
[1740134362104,5.5632,179.71,179.69,0.03636142]
[1740134362809,0.0374343,179.72,179.69,0.03636142]
[1740134363212,0.0374343,179.72,179.69,5.60016142]
[1740134363408,0.0374343,179.72,179.69,0.03636142]
[1740134363613,15.0383356,179.7,179.69,0.03636142]
[1740134364812,70.6883356,179.7,179.57,1.6856]
[1740134365012,15.0383356,179.66,179.57,5.1732]
[1740134365415,15.0383356,179.66,179.6,5.5664]
[1740134365914,0.0418197,179.65,179.61,0.0379477]
[1740134367315,5.566,179.62,179.61,0.0379477]
[1740134367514,5.566,179.62,179.54,38.9314482]
[1740134367715,15.0383356,179.64,179.54,38.9314482]
[1740134367716,15.0383356,179.6,179.54,38.9314482]
[1740134367911,20.6050356,179.6,179.53,7.324]
[1740134368113,15.0383356,179.6,179.53,7.324]
[1740134368618,20.6050356,179.6,179.54,5.5685]
[1740134368812,0.04003412,179.58,179.55,0.0406774]
[1740134370322,15.0383356,179.57,179.55,0.0406774]
[1740134370519,15.0383356,179.57,179.5,3.5685]
[1740134370720,15.0383356,179.54,179.46,1.8158]
[1740134371223,15.0383356,179.54,179.48,5.5703]
[1740134371422,15.0383356,179.57,179.46,1.8158]
[1740134371825,0.04085498,179.53,179.5,0.03944168]
[1740134373230,15.0383356,179.6,179.51,55.71]
[1740134373427,15.0383356,179.63,179.56,5.5679]
[1740134373627,15.0383356,179.63,179.52,18.4721356]
[1740134374128,22.7183356,179.66,179.52,18.4721356]
[1740134374428,0.04145278,179.61,179.57,0.03554379]
[1740134374626,0.04145278,179.61,179.59,5.5667]
[1740134375028,5.5657,179.64,179.57,0.03554379]
[1740134375228,5.5657,179.64,179.59,5.5669]
[1740134375427,5.5657,179.64,179.57,0.03554379]
[1740134375428,5.5654,179.64,179.57,0.03554379]
[1740134375826,22.7183356,179.66,179.57,0.03554379]
[1740134376127,7.68,179.66,179.57,0.03554379]
[1740134376323,15.0383356,179.6,179.57,0.03554379]
[1740134376627,5.567,179.59,179.57,0.03554379]
[1740134377127,15.0383356,179.6,179.57,0.03554379]
[1740134377328,0.092,179.68,179.57,0.03554379]
[1740134377329,193.0,179.78,179.57,15.07387939]
[1740134377524,15.0383356,179.71,179.63,5.5655]
[1740134377723,15.0383356,179.71,179.6,15.0383356]
[1740134378119,15.0383356,179.71,179.64,5.5652]
[1740134378425,15.0383356,179.71,179.6,15.0383356]
[1740134378627,0.04138324,179.69,179.66,0.03654777]
[1740134380730,15.0383356,179.74,179.67,55.66]
[1740134380924,15.0383356,179.74,179.66,0.03654777]
[1740134381328,15.0383356,179.77,179.66,0.03654777]
[1740134381527,15.0383356,179.77,179.63,15.0383356]
[1740134381732,20.5999356,179.77,179.71,5.563]
[1740134381935,0.04040081,179.72,179.71,5.563]
[1740134382136,20.5999356,179.77,179.71,5.563]
[1740134382332,0.03993436,179.73,179.71,5.563]
[1740134382533,0.03993436,179.73,179.7,0.0423654]
[1740134382833,0.03993436,179.73,179.72,5.5629]
[1740134383532,0.03993436,179.73,179.7,0.0423654]
[1740134383737,5.60283436,179.73,179.7,0.0423654]
[1740134384541,5.5632,179.71,179.7,0.0423654]
[1740134384738,20.6015356,179.71,179.7,0.0423654]
[1740134385136,15.0383356,179.71,179.7,0.0423654]
[1740134385640,5.5639,179.7,179.64,9.1215]
[1740134385842,15.0383356,179.68,179.64,9.1215]
[1740134386633,15.07593372,179.68,179.64,9.16347689]
[1740134386829,15.07593372,179.68,179.64,3.59807689]
[1740134387135,15.07593372,179.68,179.64,0.04197689]
[1740134387540,20.64023372,179.68,179.64,0.04197689]
[1740134388138,5.5646,179.67,179.64,0.04197689]
[1740134388539,15.07593372,179.68,179.64,0.04197689]
[1740134389543,20.64023372,179.68,179.64,0.04197689]
[1740134389938,15.07593372,179.68,179.64,0.04197689]
[1740134391443,5.5646,179.67,179.64,0.04197689]
[1740134392734,5.5649,179.66,179.64,0.04197689]
[1740134394339,15.07593372,179.68,179.64,0.04197689]
[1740134395049,5.5661,179.62,179.57,28.17989212]
[1740134395246,15.0383356,179.61,179.57,22.61239212]
[1740134395842,15.0383356,179.58,179.57,22.61239212]
[1740134396044,5.5678,179.57,179.51,22.61239212]
[1740134396244,15.0383356,179.58,179.56,0.03981482]
[1740134396546,15.0383356,179.58,179.55,0.03820931]
[1740134396747,0.03750506,179.59,179.55,0.03820931]
[1740134400147,0.03750506,179.59,179.58,5.5673]
[1740134400948,0.03750506,179.59,179.56,9.0589]
[1740134401348,0.03750506,179.59,179.57,5.5676]
[1740134401649,0.03750506,179.59,179.56,3.4913]
[1740134401950,0.03750506,179.59,179.58,5.5673]
[1740134402747,0.03750506,179.59,179.58,61.2473]
[1740134404452,5.5653,179.65,179.61,5.5661]
[1740134405040,5.5652,179.65,179.61,5.5661]
[1740134405347,5.5652,179.65,179.62,5.566]
[1740134405551,5.6046693,179.65,179.62,5.566]
[1740134406152,5.6046693,179.65,179.61,5.6046131]
[1740134406451,5.6046693,179.65,179.61,0.0383131]
[1740134407251,5.6046693,179.65,179.61,5.6044131]
[1740134407651,0.0394693,179.65,179.61,0.0383131]
[1740134407852,0.0394693,179.65,179.62,5.566]
[1740134409151,0.0394693,179.65,179.64,5.5654]
[1740134411653,0.0394693,179.65,179.64,61.2354]
[1740134411854,15.0383356,179.73,179.67,5.5643]
[1740134412056,5.5634,179.71,179.6,15.0383356]
[1740134412250,15.0383356,179.73,179.6,15.0383356]
[1740134413052,9.168e-05,179.68,179.66,15.0383356]
[1740134413355,20.6002356,179.76,179.72,5.5627]
[1740134413555,11.1173,179.86,179.67,3.3128]
[1740134413755,5.5615,179.77,179.67,3.3128]
[1740134413957,5.5615,179.77,179.73,5.5624]
[1740134414153,5.5611,179.78,179.67,3.3128]
[1740134414356,0.0360124,179.77,179.73,0.04110844]
[1740134414554,0.0360124,179.77,179.73,5.60370844]
[1740134414956,5.5974124,179.77,179.73,5.60370844]
[1740134415354,0.0360124,179.77,179.73,5.60370844]
[1740134415859,0.0360124,179.77,179.76,5.5617]
[1740134416256,0.0360124,179.77,179.73,0.04110844]
[1740134416560,0.0360124,179.77,179.74,5.5621]
[1740134416966,0.0360124,179.77,179.73,0.04110844]
[1740134418362,0.0360124,179.77,179.76,5.5617]
[1740134419369,0.0360124,179.77,179.73,0.04110844]
[1740134420565,15.0383356,179.76,179.73,0.04110844]
[1740134421061,15.0383356,179.76,179.67,3.3128]
[1740134421265,15.0383356,179.72,179.65,31.98112614]
[1740134421774,15.0383356,179.69,179.65,30.15892614]
[1740134422171,0.03664317,179.69,179.65,30.19732936]
[1740134423170,0.03664317,179.69,179.65,7.58493724]
[1740134423370,5.60054317,179.69,179.65,0.03840322]
[1740134423869,0.03664317,179.69,179.65,5.60320322]
[1740134424066,0.03664317,179.69,179.65,0.03840322]
[1740134424466,0.03664317,179.69,179.68,5.5642]
[1740134425269,15.0383356,179.76,179.73,5.5626]
[1740134425464,15.0383356,179.79,179.73,5.5626]
[1740134425671,5.5616,179.77,179.73,5.5626]
[1740134425872,15.0383356,179.79,179.7,1.7833]
[1740134426071,15.0383356,179.76,179.64,15.0383356]
[1740134426375,0.0364724,179.72,179.68,0.0419976]
[1740134426575,0.0364724,179.72,179.68,5.6059976]
[1740134427070,0.0364724,179.72,179.69,5.5639]
[1740134427375,0.0364724,179.72,179.68,0.0419976]
[1740134428172,5.5994724,179.72,179.68,5.6061976]
[1740134429376,0.0364724,179.72,179.68,5.6061976]
[1740134430076,0.0364724,179.72,179.68,0.0419976]
[1740134430776,0.0364724,179.72,179.7,5.5633]
[1740134430974,0.0364724,179.72,179.68,0.0419976]
[1740134431377,0.0364724,179.72,179.71,5.5632]
[1740134431973,0.0364724,179.72,179.71,61.2032]
[1740134432174,20.5992356,179.79,179.75,5.5618]
[1740134432374,15.0383356,179.79,179.69,1.7363]
[1740134432773,5.5617,179.76,179.69,1.7363]
[1740134432977,15.0383356,179.79,179.69,1.7363]
[1740134433274,5.5611,179.78,179.74,5.5623]
[1740134434575,20.5992356,179.79,179.75,5.5618]
[1740134436980,15.0383356,179.79,179.72,0.03891402]
[1740134437180,15.0383356,179.79,179.76,5.5615]
[1740134437575,15.0383356,179.79,179.76,5.60178116]
[1740134438191,15.0383356,179.79,179.76,0.04028116]
[1740134438377,15.0383356,179.79,179.69,1.7363]
[1740134438572,15.0383356,179.74,179.69,1.7363]
[1740134438777,15.0383356,179.77,179.69,1.7363]
[1740134439183,15.0383356,179.77,179.74,5.5622]
[1740134439379,15.0383356,179.8,179.69,1.7363]
[1740134439681,0.03702885,179.77,179.74,0.03705058]
[1740134442580,0.03702885,179.77,179.76,5.5617]
[1740134443182,15.0383356,179.86,179.76,55.63]
[1740134443377,193.57274488,179.94,179.76,15.0383356]
[1740134443680,5.5585,179.87,179.82,5.5597]
[1740134444187,5.5585,179.87,179.83,0.04107927]
[1740134444389,5.5592,179.84,179.83,0.04107927]
[1740134444789,15.0383356,179.84,179.83,0.04107927]
[1740134445082,5.5604,179.81,179.75,9.002]
[1740134445391,20.5987356,179.81,179.75,9.002]
[1740134446086,0.04007703,179.8,179.76,0.03883112]
[1740134446293,5.5608,179.79,179.76,0.03883112]
[1740134446485,0.04007703,179.8,179.76,0.03883112]
[1740134446786,5.5614,179.77,179.76,0.03883112]
[1740134447583,15.0383356,179.78,179.76,0.03883112]
[1740134448689,20.5994356,179.78,179.76,0.03883112]
[1740134449583,0.04007703,179.8,179.76,5.60053112]
[1740134450491,0.04007703,179.8,179.76,0.03883112]
[1740134450789,5.5613,179.78,179.76,0.03883112]
[1740134451181,15.0383356,179.78,179.76,0.03883112]
[1740134451384,5.5628,179.73,179.69,30.15892614]
[1740134451590,20.6011356,179.73,179.69,30.15892614]
[1740134452491,20.64259965,179.73,179.69,30.19744186]
[1740134453592,5.563,179.72,179.69,30.19744186]
[1740134453892,5.563,179.72,179.69,0.03851572]
[1740134454194,15.07979965,179.73,179.69,0.03851572]
[1740134454389,5.5636,179.7,179.69,0.03851572]
[1740134454591,20.6019356,179.7,179.69,0.03851572]
[1740134454990,15.0383356,179.7,179.69,0.03851572]
[1740134456995,5.563,179.72,179.69,0.03851572]
[1740134457594,5.5636,179.7,179.69,0.03851572]
[1740134457798,20.6019356,179.7,179.69,0.03851572]
[1740134459298,5.5646,179.67,179.62,5.566]
[1740134459499,15.0383356,179.7,179.62,5.566]
[1740134459902,5.5643,179.68,179.62,5.566]
[1740134460301,0.03854681,179.67,179.62,5.566]
[1740134460500,0.03854681,179.67,179.63,5.60295429]
[1740134460805,0.03854681,179.67,179.63,0.03725429]
[1740134461006,15.07688241,179.67,179.63,0.03725429]
[1740134461311,5.565,179.66,179.63,0.03725429]
[1740134461501,15.07688241,179.67,179.63,0.03725429]
[1740134462608,20.64148241,179.67,179.63,0.03725429]
[1740134464207,15.07688241,179.67,179.63,0.03725429]
[1740134464507,0.03854681,179.67,179.63,0.03725429]
[1740134465607,0.03854681,179.67,179.63,5.60275429]
[1740134466409,0.03854681,179.67,179.63,0.03725429]
[1740134466701,5.5648,179.66,179.63,0.03725429]
[1740134466910,0.03854681,179.67,179.63,0.03725429]
[1740134467204,5.60314681,179.67,179.63,0.03725429]
[1740134468608,5.5649,179.66,179.63,0.03725429]
[1740134468809,15.07688241,179.67,179.63,0.03725429]
[1740134469310,20.6037356,179.64,179.63,0.03725429]
[1740134470109,5.5659,179.63,179.58,5.5672]
[1740134470305,15.0383356,179.64,179.59,5.5669]
[1740134470705,15.0383356,179.67,179.54,45.19726174]
[1740134470904,15.0383356,179.67,179.6,5.5665]
[1740134471309,0.04125526,179.65,179.62,0.03531494]
[1740134471511,5.60655526,179.65,179.62,0.03531494]
[1740134471806,15.0383356,179.64,179.62,0.03531494]
[1740134472311,5.5657,179.63,179.62,0.03531494]
[1740134473209,0.04125526,179.65,179.62,0.03531494]
[1740134473803,0.04125526,179.65,179.64,5.5654]
[1740134474308,0.04125526,179.65,179.62,0.03531494]
[1740134475713,0.04125526,179.65,179.64,5.5654]
[1740134477905,5.0636,179.78,179.64,55.67]
[1740134478109,15.0383356,179.76,179.69,5.5638]
[1740134478512,5.5626,179.74,179.69,5.5638]
[1740134479118,0.03988922,179.73,179.7,0.04144512]
[1740134479414,15.0383356,179.76,179.66,15.0383356]
[1740134479415,15.0383356,179.76,179.67,3.3572]
[1740134479616,0.03589039,179.73,179.7,0.04103202]
[1740134480216,0.03589039,179.73,179.71,5.5632]
[1740134481215,0.03589039,179.73,179.7,0.04103202]
[1740134481414,5.59859039,179.73,179.7,0.04103202]
[1740134481810,0.03589039,179.73,179.7,0.04103202]
[1740134482015,0.03589039,179.73,179.71,5.5632]
[1740134482419,0.03589039,179.73,179.7,0.04103202]
[1740134483013,0.03589039,179.73,179.71,5.563]
[1740134483317,0.03589039,179.73,179.7,0.04103202]
[1740134483517,0.03589039,179.73,179.72,5.5629]
[1740134486912,20.5991356,179.79,179.7,0.04103202]
[1740134487216,5.5608,179.79,179.7,0.04103202]
[1740134487710,5.5608,179.79,179.75,5.5618]
[1740134488117,0.03902893,179.79,179.75,0.03552938]
[1740134489112,0.03902893,179.79,179.78,5.5611]
[1740134491817,15.0383356,179.88,179.78,55.62]
[1740134492020,15.0383356,179.88,179.76,3.4601]
[1740134492219,5.5591,179.85,179.81,5.5601]
[1740134492915,5.5969293,179.85,179.81,5.59518215]
[1740134493622,5.5596,179.83,179.81,0.03508215]
[1740134493819,0.0378293,179.85,179.81,0.03508215]
[1740134494222,5.5593,179.84,179.81,0.03508215]
[1740134494523,15.0761649,179.85,179.81,0.03508215]
[1740134494824,5.5593,179.84,179.81,0.03508215]
[1740134497328,15.0761649,179.85,179.81,0.03508215]
[1740134497523,5.5598,179.83,179.81,0.03508215]
[1740134498031,20.5981356,179.82,179.81,0.03508215]
[1740134498326,15.0383356,179.82,179.69,20.2369356]
[1740134498527,5.2111,179.89,179.69,20.2369356]
[1740134498528,15.0383356,179.78,179.69,5.1986]
[1740134498723,20.5997356,179.78,179.69,5.1986]
[1740134499331,20.5997356,179.78,179.72,5.5628]
[1740134499532,0.04216859,179.75,179.72,5.60220117]
[1740134500532,0.04216859,179.75,179.73,5.5626]
[1740134500733,0.04216859,179.75,179.72,0.03940117]
[1740134500933,0.04216859,179.75,179.74,5.5623]
[1740134510340,0.04216859,179.75,179.73,5.5624]
[1740134510534,0.04216859,179.75,179.72,0.03940117]
[1740134511538,0.04216859,179.75,179.73,5.5626]
[1740134512341,0.04216859,179.75,179.74,5.5623]
[1740134515345,0.04216859,179.75,179.72,0.03940117]
[1740134515346,15.0383356,179.82,179.72,15.07773677]
[1740134515533,15.0383356,179.82,179.77,5.5611]
[1740134515734,5.5606,179.8,179.77,5.5611]
[1740134516040,15.0383356,179.82,179.77,5.5612]
[1740134516237,5.5603,179.81,179.72,15.0383356]
[1740134516442,0.04193583,179.79,179.75,0.04023821]
[1740134516634,0.04193583,179.79,179.78,5.561]
[1740134525251,5.5587,179.86,179.78,70.6583356]
[1740134525450,5.5587,179.86,179.78,15.0383356]
[1740134525951,5.5587,179.86,179.84,5.5592]
[1740134526147,15.0383356,179.88,179.78,15.0383356]
[1740134526352,15.0383356,179.88,179.83,0.04245363]
[1740134526651,15.0383356,179.88,179.85,5.5588]
[1740134526849,15.0383356,179.88,179.83,0.04245363]
[1740134527149,15.0383356,179.88,179.84,5.559]
[1740134527342,15.0383356,179.88,179.83,0.04245363]
[1740134527546,15.0383356,179.85,179.83,0.04245363]
[1740134527746,15.0383356,179.85,179.78,5.5609]
[1740134527947,15.0383356,179.82,179.76,7.54653402]
[1740134528153,15.0383356,179.79,179.76,7.54653402]
[1740134529148,5.5612,179.78,179.76,7.58548466]
[1740134529542,15.07868528,179.79,179.76,7.58548466]
[1740134529747,5.5614,179.77,179.76,2.10868466]
[1740134530051,15.07868528,179.79,179.75,46.87477161]
[1740134530253,15.07868528,179.79,179.68,22.61239212]
[1740134530450,5.5616,179.77,179.72,5.5627]
[1740134531056,0.03529203,179.76,179.73,0.03948239]
[1740134532658,0.03529203,179.76,179.73,5.60208239]
[1740134533455,0.03529203,179.76,179.73,0.03948239]
[1740134535463,0.03529203,179.76,179.73,5.60198239]
[1740134537159,5.59719203,179.76,179.73,0.03948239]
[1740134537558,0.03529203,179.76,179.73,0.03948239]
[1740134540563,0.03529203,179.76,179.74,5.5621]
[1740134540765,0.03529203,179.76,179.73,0.03948239]
[1740134541262,0.03529203,179.76,179.75,5.562]
[1740134542268,5.56,179.82,179.74,3.4913]
[1740134542466,15.0383356,179.83,179.74,5.2088]
[1740134542667,5.5602,179.81,179.74,5.2088]
[1740134543365,0.03511665,179.79,179.76,0.04118341]
[1740134544166,0.03511665,179.79,179.77,5.5612]
[1740134544367,0.03511665,179.79,179.76,0.04118341]
[1740134545263,0.03511665,179.79,179.76,5.60268341]
[1740134545658,5.59611665,179.79,179.76,0.04118341]
[1740134546568,0.03511665,179.79,179.76,0.04118341]
[1740134546869,0.03511665,179.79,179.76,5.60288341]
[1740134547669,15.0383356,179.86,179.76,15.07951901]
[1740134547870,15.0383356,179.89,179.79,15.0383356]
[1740134548466,20.5962356,179.89,179.79,15.0383356]
[1740134548766,20.5962356,179.89,179.84,5.5589]
[1740134548962,15.0383356,179.89,179.84,5.5589]
[1740134549167,5.5581,179.88,179.84,5.5589]
[1740134549367,15.0383356,179.89,179.82,0.03663562]
[1740134549563,20.5961356,179.89,179.84,5.5592]
[1740134549762,20.5961356,179.89,179.82,0.03663562]
[1740134549971,20.5961356,179.89,179.84,5.5592]
[1740134550265,15.0383356,179.89,179.84,5.5592]
[1740134550468,15.0383356,179.89,179.82,0.03663562]
[1740134550766,7.56,179.93,179.82,0.03663562]
[1740134550767,15.0383356,179.86,179.82,0.03663562]
[1740134550969,5.5593,179.84,179.79,5.5605]
[1740134551168,5.5593,179.84,179.82,0.03678735]
[1740134551773,15.0383356,179.86,179.82,0.03678735]
[1740134551972,15.0383356,179.89,179.82,0.03678735]
[1740134552265,15.0383356,179.86,179.84,0.04152121]
[1740134552569,5.5591,179.85,179.84,0.04152121]
[1740134553372,15.0383356,179.86,179.84,0.04152121]
[1740134553566,15.0383356,179.89,179.84,0.04152121]
[1740134554674,15.0383356,179.89,179.86,5.5584]
[1740134555171,15.0383356,179.89,179.85,5.5587]
[1740134556274,20.5960356,179.89,179.85,5.5587]
[1740134556773,20.5960356,179.89,179.84,5.60062121]
[1740134557070,15.0383356,179.89,179.84,0.04152121]
[1740134557662,20.5963356,179.89,179.84,5.60062121]
[1740134558676,15.0383356,179.89,179.84,5.60072121]
[1740134559176,15.0383356,179.89,179.84,0.04152121]
[1740134560073,5.5588,179.86,179.84,0.04152121]
[1740134560377,15.0383356,179.89,179.84,0.04152121]
[1740134560876,5.5589,179.85,179.84,0.04152121]
[1740134563678,20.5970356,179.86,179.84,0.04152121]
[1740134565283,5.5589,179.85,179.84,0.04152121]
[1740134565481,15.0383356,179.86,179.84,0.04152121]
[1740134565982,20.5970356,179.86,179.84,0.04152121]
[1740134566682,9.62046255,179.85,179.84,0.04152121]
[1740134569286,15.17936255,179.85,179.84,0.04152121]
[1740134573684,9.62046255,179.85,179.84,5.60072121]
[1740134573889,9.62046255,179.88,179.84,5.60072121]
[1740134574286,15.17866255,179.88,179.84,5.60072121]
[1740134574892,9.62046255,179.88,179.84,5.60072121]
[1740134575292,9.62046255,179.88,179.84,0.04152121]
[1740134576386,5.5583,179.87,179.84,0.04152121]
[1740134576695,9.62046255,179.86,179.84,0.04152121]
[1740134577094,15.17916255,179.86,179.84,0.04152121]
[1740134577288,0.58662409,179.95,179.84,0.04152121]
[1740134577495,9.62046255,179.89,179.83,9.62046255]
[1740134577694,9.62046255,179.89,179.88,0.03970698]
[1740134577894,9.62046255,179.89,179.83,15.17976255]
[1740134578095,9.62046255,179.87,179.83,9.62046255]
[1740134578297,9.62046255,179.87,179.84,0.04095604]
[1740134578494,9.62046255,179.87,179.84,5.60015604]
[1740134578794,9.62046255,179.87,179.84,0.04095604]
[1740134580589,15.17896255,179.87,179.84,0.04095604]
[1740134581793,9.62046255,179.85,179.84,0.04095604]
[1740134581999,9.62046255,179.85,179.78,9.62046255]
[1740134582201,9.62046255,179.85,179.83,0.0407911]
[1740134582399,9.62046255,179.86,179.83,0.0407911]
[1740134582595,9.62046255,179.84,179.78,9.62046255]
[1740134582796,9.62046255,179.8,179.77,3.4707]
[1740134583097,9.62046255,179.8,179.79,0.04223693]
[1740134583500,9.62046255,179.82,179.79,0.04223693]
[1740134584406,9.62046255,179.82,179.8,5.5604]
[1740134584701,9.62046255,179.82,179.79,0.04223693]
[1740134584702,9.62046255,179.84,179.79,0.04223693]
[1740134584902,9.62046255,179.84,179.79,9.66269948]
[1740134585401,7.54,179.85,179.79,9.66269948]
[1740134585698,7.54,179.85,179.82,5.5596]
[1740134586002,9.62046255,179.84,179.79,0.04223693]